bitfinex/quotes_ETHUSD_20240910
["timestamp","ask_amount","ask_price","bid_price","bid_amount"]
[1725986077364,12.0390352,2336.7,2336.6,0.000231]
[1725986077702,9.80963647,2336.7,2336.6,0.000231]
[1725986078191,12.04559674,2336.7,2336.6,0.000231]
[1725986078378,9.80963647,2336.7,2336.6,0.000231]
[1725986078693,12.04559674,2336.7,2336.6,0.000231]
[1725986078857,12.59559674,2336.7,2336.6,0.000231]
[1725986079262,10.35963647,2336.7,2336.6,0.000231]
[1725986080352,3.95450095,2336.7,2336.6,0.000231]
[1725986080556,5.64282285,2336.7,2336.6,0.000231]
[1725986081055,5.19532154,2336.7,2336.6,0.000231]
[1725986081256,5.64282285,2336.7,2336.6,0.000231]
[1725986082200,5.53581559,2336.7,2336.6,0.000231]
[1725986082408,5.09022409,2336.7,2336.6,0.000231]
[1725986082554,3.1783607,2336.7,2336.6,0.2257941]
[1725986083395,2.7305997,2336.7,2336.6,0.2257941]
[1725986083609,1.83518357,2336.7,2336.6,0.2257941]
[1725986083893,2.73064234,2336.7,2336.6,0.2257941]
[1725986084300,0.73407343,2336.7,2336.6,0.2257941]
[1725986084500,1.6295322,2336.7,2336.6,0.2257941]
[1725986084710,2.7306524,2336.7,2336.6,0.2257941]
[1725986085598,0.73407343,2336.7,2336.6,0.2257941]
[1725986085831,1.6295322,2336.7,2336.6,0.2257941]
[1725986085997,2.72636616,2336.7,2336.6,0.2257941]
[1725986086302,0.73407343,2336.7,2336.6,0.2257941]
[1725986086602,1.6295322,2336.8,2336.6,0.2257941]
[1725986086804,0.73407343,2336.7,2336.6,0.2257941]
[1725986087006,1.99226396,2336.7,2336.6,0.2257941]
[1725986087305,0.7312031,2336.7,2336.6,0.000231]
[1725986087462,1.62666187,2336.8,2336.6,0.000231]
[1725986087662,1.62666187,2336.7,2336.6,0.000231]
[1725986088162,0.7312031,2336.7,2336.6,0.000231]
[1725986088362,1.62666187,2336.8,2336.6,0.000231]
[1725986088560,0.7312031,2336.7,2336.6,0.000231]
[1725986088800,0.89545877,2336.7,2336.6,0.000231]
[1725986088962,0.7312031,2336.7,2336.6,0.000231]
[1725986089718,1.62666187,2336.8,2336.6,0.000231]
[1725986089913,0.73083673,2336.7,2336.6,0.000231]
[1725986090112,1.62478605,2336.8,2336.6,0.000231]
[1725986091382,0.89545877,2336.9,2336.6,0.2257941]
[1725986091618,1.6247253,2336.9,2336.7,2.2605]
[1725986091820,0.72923725,2336.8,2336.7,2.2605]
[1725986092034,0.89545877,2337.1,2336.9,2.2664]
[1725986092329,1.34317713,2337.2,2336.9,2.2664]
[1725986092330,0.89545877,2337.2,2336.9,2.2664]
[1725986092521,0.89545877,2337.2,2337.0,0.42664]
[1725986092682,1.98508758,2337.2,2337.0,0.42664]
[1725986092877,0.89545877,2337.2,2337.0,0.42664]
[1725986094220,1.62176621,2337.3,2337.0,0.42664]
[1725986094425,0.72605582,2337.2,2337.0,0.42664]
[1725986094727,0.89545877,2337.3,2337.0,0.42664]
[1725986094906,0.89545877,2337.2,2336.9,2.2664]
[1725986095280,1.34317713,2337.4,2336.9,2.2664]
[1725986095281,0.89545877,2337.3,2336.9,2.2664]
[1725986095480,1.62152614,2337.3,2336.9,2.2664]
[1725986095774,0.89545877,2337.4,2337.2,2.3462]
[1725986096187,1.98468911,2337.3,2337.2,2.3462]
[1725986096394,0.72615356,2337.3,2337.2,2.3462]
[1725986096588,0.72615356,2337.3,2337.2,2.78082]
[1725986097138,1.34317713,2337.5,2337.2,5.78082]
[1725986097139,0.89545877,2337.5,2337.2,5.78082]
[1725986097308,0.89545877,2337.7,2337.2,5.78082]
[1725986097644,0.89545877,2337.8,2337.3,0.778082]
[1725986098238,1.45012186,2337.9,2337.3,0.778082]
[1725986098239,1.72836241,2337.9,2337.3,0.778082]
[1725986098447,0.72566914,2337.8,2337.3,0.778082]
[1725986098602,0.72566914,2337.8,2337.4,0.6558902]
[1725986099309,1.0024035,2337.9,2337.4,0.6558902]
[1725986100009,0.72532442,2337.8,2337.4,0.6558902]
[1725986100714,1.0024035,2337.9,2337.4,0.6558902]
[1725986100930,0.72529511,2337.8,2337.4,0.6558902]
[1725986101712,0.89545877,2337.9,2337.5,2.3667]
[1725986102013,1.47356696,2338.0,2337.6,0.50225902]
[1725986102014,1.0258486,2338.0,2337.6,0.50225902]
[1725986102217,0.0234414,2338.0,2337.6,0.50225902]
[1725986102423,0.0234414,2338.0,2337.6,3.50225902]
[1725986102635,0.0234414,2338.0,2337.7,2.7169259]
[1725986102840,0.0234414,2338.0,2337.8,2.0]
[1725986103651,0.0234414,2338.0,2337.9,2.3064]
[1725986108570,0.0234414,2338.0,2337.9,5.3064]
[1725986108931,0.0234414,2338.0,2337.9,5.85106127]
[1725986109112,0.0234414,2338.0,2337.9,7.08327354]
[1725986109312,0.0234414,2338.0,2337.9,6.53861227]
[1725986123011,0.0234414,2338.0,2337.9,7.08327354]
[1725986123715,0.0234414,2338.0,2337.9,7.63327354]
[1725986124218,0.0236724,2338.4,2338.3,4.4137]
[1725986124514,0.0236724,2338.4,2338.3,11.53453552]
[1725986127011,0.0236724,2338.4,2338.3,11.76588717]
[1725986127641,0.0236724,2338.4,2338.3,12.31588717]
[1725986129396,0.0236724,2338.9,2338.3,47.31588717]
[1725986129600,0.0236724,2338.9,2338.8,8.54723552]
[1725986129796,0.0236724,2338.9,2338.8,11.54723552]
[1725986131697,0.0236724,2338.9,2338.8,9.12083552]
[1725986132340,0.0236724,2338.9,2338.8,11.58653552]
[1725986136243,0.0236724,2338.9,2338.8,9.12083552]
[1725986136451,0.0236724,2338.9,2338.8,10.2985991]
[1725986137737,0.0236724,2338.9,2338.8,12.6285991]
[1725986140075,0.0236724,2338.9,2338.8,13.1785991]
[1725986140672,0.0236724,2338.9,2338.8,12.6285991]
[1725986147058,0.0236724,2338.9,2338.8,10.2985991]
[1725986150162,0.0236724,2338.9,2338.8,8.07486064]
[1725986159014,0.0236724,2338.9,2338.8,6.17776358]
[1725986159169,2.4418724,2338.9,2338.8,2.0]
[1725986160484,0.0236724,2338.9,2338.8,3.89709706]
[1725986160694,0.0236724,2338.9,2338.8,7.58680677]
[1725986161618,0.0236724,2338.9,2338.8,5.0]
[1725986161912,2.4562724,2338.9,2338.8,5.0]
[1725986162418,2.4562724,2338.9,2338.8,2.0]
[1725986162718,2.4562724,2338.9,2338.5,2.0]
[1725986163018,2.2914,2338.7,2338.5,2.0]
[1725986163197,0.0236724,2338.9,2337.8,0.4472947]
[1725986163198,2.3692,2338.5,2338.1,2.0]
[1725986163528,2.00400298,2338.6,2338.1,2.0]
[1725986163529,2.3692,2338.3,2338.1,2.0]
[1725986165769,2.3692,2338.3,2337.8,2.0]
[1725986167421,2.3692,2338.3,2337.8,2.91149268]
[1725986167916,2.3692,2338.3,2337.9,3.0]
[1725986168068,2.3692,2338.3,2337.6,4.11492684]
[1725986168069,2.3692,2338.3,2337.6,2.0]
[1725986168382,2.3305,2338.0,2337.6,2.0]
[1725986169084,2.2625,2337.8,2337.4,2.0]
[1725986169287,2.2625,2337.8,2337.0,12.05601381]
[1725986169288,2.2625,2337.8,2337.3,2.0]
[1725986170230,2.2625,2337.8,2337.7,2.0]
[1725986170640,2.3432,2338.5,2337.7,2.0]
[1725986170938,2.3432,2338.5,2338.0,2.0]
[1725986171287,2.3774,2338.6,2338.0,2.0]
[1725986171490,2.3774,2338.4,2338.0,2.0]
[1725986174319,2.3774,2338.4,2338.0,2.56114927]
[1725986175219,2.3774,2338.4,2338.0,2.0]
[1725986178362,2.3974,2338.2,2338.0,2.0]
[1725986179641,2.3974,2338.7,2338.0,2.0]
[1725986179843,2.3974,2338.5,2338.0,2.0]
[1725986185328,0.0236724,2338.9,2338.3,2.0]
[1725986185582,0.0236724,2338.9,2338.6,2.0]
[1725986191045,2.2632,2338.8,2338.6,2.0]
[1725986191286,0.10689988,2338.7,2338.2,2.0]
[1725986191441,2.4649,2338.6,2338.2,2.0]
[1725986191636,0.10691406,2338.5,2338.2,2.0]
[1725986193052,2.3515,2338.4,2337.7,2.0]
[1725986193257,2.3515,2338.4,2337.8,0.64170268]
[1725986193258,0.10692193,2338.3,2337.8,0.64170268]
[1725986193472,0.10692193,2338.3,2337.7,2.0]
[1725986194462,0.10692193,2338.3,2337.7,5.0]
[1725986195847,0.10692193,2338.3,2337.7,2.0]
[1725986196784,0.10692193,2338.3,2337.7,5.0]
[1725986196950,0.10692193,2338.3,2337.7,6.21149268]
[1725986198554,2.45843226,2338.4,2337.7,6.21149268]
[1725986198782,2.45843226,2338.4,2337.8,4.11492684]
[1725986199292,0.89485304,2338.7,2338.0,2.0]
[1725986199293,0.10692533,2338.6,2338.0,2.0]
[1725986199449,2.4543,2338.7,2338.0,6.11492684]
[1725986199450,2.56122533,2338.7,2338.0,6.11492684]
[1725986199787,2.56122533,2338.7,2338.1,3.0]
[1725986199990,2.56122533,2338.7,2338.2,0.91149268]
[1725986200147,2.4543,2338.7,2338.3,2.0]
[1725986201660,0.10690162,2338.6,2338.3,2.0]
[1725986202476,2.3585,2338.5,2338.0,2.0]
[1725986202697,0.10691912,2338.4,2338.0,2.0]
[1725986203196,2.4601,2338.3,2337.7,2.0]
[1725986203363,0.1069329,2338.2,2337.7,2.0]
[1725986203594,2.5670329,2338.3,2337.7,2.0]
[1725986203758,2.5670329,2338.3,2337.8,0.61149268]
[1725986204176,2.4601,2338.3,2337.8,0.61149268]
[1725986204647,2.4601,2338.3,2337.8,3.61149268]
[1725986204851,0.89485304,2338.5,2338.1,2.0]
[1725986204852,1.00177891,2338.5,2338.1,2.0]
[1725986205091,3.46186837,2338.6,2338.1,2.0]
[1725986205593,0.71723266,2338.5,2338.1,2.0]
[1725986205795,0.71723266,2338.5,2338.1,2.74662]
[1725986205982,0.71724341,2338.5,2338.4,2.0]
[1725986206304,1.78970608,2338.8,2338.4,2.0]
[1725986206305,0.89485304,2338.8,2338.4,2.0]
[1725986206655,0.71717193,2338.8,2338.4,2.0]
[1725986206990,0.91852544,2338.9,2338.7,2.0]
[1725986207151,0.0236724,2338.9,2338.7,2.0]
[1725986208790,0.91852544,2338.9,2338.4,5.0]
[1725986209099,0.91852544,2338.9,2338.4,6.20651959]
[1725986209980,0.0236724,2338.9,2338.4,6.20651959]
[1725986210593,2.7120076,2338.9,2338.4,6.20651959]
[1725986210798,0.0236724,2338.9,2338.4,6.20651959]
[1725986213926,2.377,2338.8,2338.4,6.20651959]
[1725986214084,2.377,2338.8,2338.4,5.0]
[1725986214288,2.377,2338.8,2338.5,3.0]
[1725986214507,2.377,2338.8,2338.4,2.0]
[1725986219619,0.10690309,2338.7,2338.4,2.0]
[1725986220313,2.3,2338.6,2338.1,2.0]
[1725986220500,2.3,2338.4,2338.1,2.0]
[1725986220700,0.1069205,2338.3,2338.1,2.0]
[1725986220911,2.4069205,2338.4,2338.1,2.0]
[1725986221215,2.3,2338.6,2338.1,2.0]
[1725986221416,2.3,2338.6,2338.1,2.66168386]
[1725986221722,2.3,2338.6,2338.1,9.0338107]
[1725986222102,0.1069077,2338.7,2338.1,9.0338107]
[1725986222850,3.36885304,2338.8,2338.5,2.0]
[1725986223144,0.91852544,2338.9,2338.5,2.0]
[1725986223348,0.0236724,2338.9,2338.5,2.0]
[1725986223501,0.91852544,2338.9,2338.5,2.0]
[1725986223701,0.91852544,2338.9,2338.5,2.91149268]
[1725986224010,0.91852544,2338.9,2338.6,3.0]
[1725986224211,0.71455708,2338.8,2338.6,3.0]
[1725986224723,0.91852544,2338.9,2338.6,3.0]
[1725986224955,0.71457378,2338.8,2338.6,3.0]
[1725986225249,0.71457378,2338.8,2338.5,2.0]
[1725986225446,2.4262,2338.7,2338.5,2.0]
[1725986225750,0.91852544,2338.9,2338.5,2.0]
[1725986225751,3.34472544,2338.9,2338.5,2.0]
[1725986226109,2.4498724,2338.9,2338.5,2.0]
[1725986226310,0.10689722,2338.8,2338.2,5.43337299]
[1725986226535,2.2838,2338.7,2338.2,2.0]
[1725986226921,0.10690735,2338.6,2338.2,2.0]
[1725986227328,0.82162317,2338.6,2338.2,2.0]
[1725986227657,1.00176039,2338.6,2338.2,2.0]
[1725986228322,3.28556172,2338.7,2338.2,2.0]
[1725986228523,3.28556172,2338.7,2338.2,2.24335433]
[1725986228852,1.02543412,2338.9,2338.3,0.43354331]
[1725986229036,0.71468101,2338.8,2338.4,0.43354331]
[1725986229245,1.02543412,2338.9,2338.7,2.0]
[1725986229246,0.0236724,2338.9,2338.7,2.0]
[1725986232851,0.0236724,2338.9,2338.4,0.43354331]
[1725986232852,3.17792544,2338.9,2338.4,0.43354331]
[1725986233061,0.10690082,2338.8,2338.4,0.43354331]
[1725986233429,0.10690082,2338.8,2338.4,0.43326659]
[1725986234246,3.2848241,2338.9,2338.4,0.26766209]
[1725986234451,3.2848241,2338.9,2338.5,0.43325234]
[1725986234652,2.38997106,2338.9,2338.4,0.26766209]
[1725986234858,2.38997106,2338.9,2338.5,0.43321175]
[1725986235056,2.38997106,2338.9,2338.4,3.26766209]
[1725986235355,2.38997106,2338.9,2338.5,3.43317191]
[1725986235650,2.38997106,2338.9,2338.6,0.43317191]
[1725986235651,0.13057106,2338.9,2338.6,0.43317191]
[1725986235857,0.13057106,2338.9,2338.4,3.0]
[1725986236028,0.13057106,2338.9,2338.5,0.43312108]
[1725986236231,0.84197421,2338.9,2338.3,5.92135929]
[1725986236559,1.0254241,2338.9,2338.4,0.43310646]
[1725986236758,2.275,2338.8,2338.5,0.43310646]
[1725986237051,2.275,2338.8,2338.6,0.43310618]
[1725986237353,2.275,2338.8,2338.4,0.43310117]
[1725986237555,2.275,2338.8,2338.5,0.43310117]
[1725986237858,2.275,2338.8,2338.3,5.0]
[1725986238016,2.275,2338.8,2338.4,0.43309699]
[1725986238352,2.275,2338.8,2338.5,0.43309699]
[1725986238518,2.275,2338.8,2338.3,5.0]
[1725986238710,2.275,2338.8,2338.4,3.43280661]
[1725986238910,2.275,2338.8,2338.5,0.43280661]
[1725986239155,2.275,2338.8,2338.4,0.43280661]
[1725986239324,2.275,2338.8,2338.5,0.43280661]
[1725986239514,0.10690741,2338.7,2338.4,0.43280661]
[1725986239713,0.10690741,2338.7,2338.4,3.0]
[1725986239973,0.10690741,2338.7,2338.3,2.0]
[1725986240133,0.10690741,2338.7,2338.4,0.4328301]
[1725986240326,0.10690741,2338.7,2338.3,2.0]
[1725986241227,2.780995,2338.7,2338.3,2.0]
[1725986241569,0.10690741,2338.7,2338.3,2.0]
[1725986241863,2.78106003,2338.7,2338.3,2.0]
[1725986242024,1.00176045,2338.7,2338.3,2.0]
[1725986242364,0.10690741,2338.7,2338.3,2.0]
[1725986242565,0.10690741,2338.7,2338.3,2.61149268]
[1725986242859,0.10690741,2338.7,2338.4,3.0]
[1725986243440,1.36595196,2338.9,2338.6,2.0]
[1725986243441,0.91852544,2338.9,2338.6,2.0]
[1725986243743,0.0236724,2338.9,2338.6,5.0]
[1725986243954,0.0236724,2338.9,2338.7,0.91149268]
[1725986245344,2.3329724,2338.9,2338.6,5.0]
[1725986245561,2.3329724,2338.9,2338.6,2.0]
[1725986245562,2.78202454,2338.8,2338.6,2.0]
[1725986245857,0.10689834,2338.8,2338.6,2.0]
[1725986247175,1.7138915,2338.8,2338.3,2.0]
[1725986247362,0.10690282,2338.7,2338.3,2.0]
[1725986247591,2.78217746,2338.7,2338.3,2.0]
[1725986247808,0.89485304,2338.7,2338.3,2.0]
[1725986247969,1.71394183,2338.7,2338.3,2.0]
[1725986248177,1.00175521,2338.8,2338.3,2.0]
[1725986248407,0.71221421,2338.7,2338.3,2.5]
[1725986249276,1.60706725,2338.7,2338.3,2.5]
[1725986249471,1.00175324,2338.7,2338.3,2.5]
[1725986249706,0.89485304,2338.7,2338.4,0.25]
[1725986249876,1.60725375,2338.7,2338.4,3.25]
[1725986250071,2.67585481,2338.7,2338.4,3.25]
[1725986250300,0.89485304,2338.7,2338.4,3.25]
[1725986250601,0.89485304,2338.7,2338.5,0.45817893]
[1725986250772,0.89485304,2338.8,2338.7,2.0]
[1725986250972,2.67625286,2338.8,2338.7,2.0]
[1725986251157,0.89485304,2338.8,2338.7,2.0]
[1725986251358,2.67664469,2338.8,2338.7,2.0]
[1725986253662,2.67969957,2338.8,2338.7,2.0]
[1725986254707,0.71271666,2338.8,2338.7,2.0]
[1725986254906,0.71271666,2338.8,2338.7,2.54581789]
[1725986254907,2.67969606,2338.8,2338.7,2.54581789]
[1725986256104,5.54067441,2338.8,2338.5,3.0]
[1725986256312,2.67985137,2338.7,2338.3,5.0]
[1725986256624,2.67985137,2338.7,2338.3,3.33603695]
[1725986256625,0.71280847,2338.6,2338.3,3.33603695]
[1725986256769,0.71280847,2338.6,2338.4,3.0]
[1725986256770,0.89795652,2338.6,2338.4,3.0]
[1725986257118,0.89795652,2338.7,2338.4,3.0]
[1725986257320,0.71279787,2338.6,2338.4,3.0]
[1725986257514,0.71279787,2338.6,2338.4,3.74877493]
[1725986257717,0.89795652,2338.7,2338.4,3.74877493]
[1725986257921,0.71278733,2338.6,2338.4,3.74877493]
[1725986258085,1.00485825,2338.7,2338.4,3.0]
[1725986258290,1.00485825,2338.7,2338.3,5.0]
[1725986258291,2.67999523,2338.6,2338.3,5.0]
[1725986258486,0.71282688,2338.5,2338.3,2.0]
[1725986258675,1.00485825,2338.7,2338.3,2.0]
[1725986258878,2.67993113,2338.6,2338.3,2.0]
[1725986259073,0.89795652,2338.6,2338.3,2.0]
[1725986259412,0.89795652,2338.7,2338.3,2.93617591]
[1725986259713,0.71280267,2338.6,2338.4,3.0]
[1725986259918,0.89795652,2338.7,2338.3,5.0]
[1725986260086,0.89795652,2338.7,2338.3,7.16270088]
[1725986260286,0.71279013,2338.6,2338.3,7.16270088]
[1725986260511,1.96714494,2338.6,2338.3,7.16270088]
[1725986260682,0.89795652,2338.7,2338.3,7.16270088]
[1725986261011,2.67994854,2338.6,2338.3,7.16270088]
[1725986261212,0.89795652,2338.7,2338.3,5.0]
[1725986261376,0.89795652,2338.7,2338.3,2.0]
[1725986261572,0.89795652,2338.7,2338.4,2.8129]
[1725986261776,0.89795652,2338.8,2338.5,3.0]
[1725986262013,0.71276002,2338.7,2338.5,3.0]
[1725986262311,0.89795652,2338.8,2338.6,0.58129]
[1725986262521,0.89795652,2338.8,2338.5,3.0]
[1725986262722,2.67983751,2338.7,2338.5,3.0]
[1725986262927,0.89795652,2338.7,2338.5,3.0]
[1725986263424,1.34227956,2338.8,2338.5,3.0]
[1725986263425,0.89795652,2338.8,2338.5,3.0]
[1725986263615,0.71274401,2338.7,2338.5,3.0]
[1725986263818,1.96708501,2338.7,2338.5,4.19278268]
[1725986264131,0.89795652,2338.7,2338.5,4.19278268]
[1725986264831,0.89795652,2338.7,2338.4,3.5]
[1725986265130,0.89795652,2338.7,2338.4,0.5]
[1725986267208,0.71277444,2338.6,2338.4,0.5]
[1725986267393,0.89795652,2338.7,2338.4,0.5]
[1725986267793,0.71282568,2338.6,2338.4,0.5]
[1725986268134,0.89795652,2338.7,2338.5,0.25]
[1725986268428,0.71282468,2338.6,2338.5,0.25]
[1725986269041,0.89795652,2338.7,2338.5,2.6633]
[1725986269197,0.89795652,2338.7,2338.6,2.26633]
[1725986269538,1.81337848,2338.9,2338.6,2.26633]
[1725986269539,0.92162892,2338.9,2338.6,2.26633]
[1725986269838,0.0236724,2338.9,2338.8,2.4133]
[1725986270053,0.0236724,2338.9,2338.8,6.59275568]
[1725986270556,0.0236724,2338.9,2338.8,7.36065077]
[1725986271210,0.0236724,2338.9,2338.8,8.25102031]
[1725986271756,0.0236724,2338.9,2338.8,7.36065077]
[1725986274013,0.0236724,2338.9,2338.8,8.00873163]
[1725986274553,0.0236724,2338.9,2338.8,7.36065077]
[1725986274738,0.0236724,2338.9,2338.8,8.00873589]
[1725986275061,0.0236724,2338.9,2338.8,8.00738512]
[1725986276652,0.0236724,2338.9,2338.8,8.89775466]
[1725986276840,0.0236724,2338.9,2338.8,9.39966642]
[1725986277170,0.0236724,2338.9,2338.8,9.94428794]
[1725986277733,0.0236724,2338.9,2338.8,10.20373488]
[1725986278043,0.0236724,2338.9,2338.8,25.24379394]
[1725986278574,0.0236724,2338.9,2338.8,21.1288671]
[1725986278783,0.0236724,2338.9,2338.8,25.4822842]
[1725986278958,0.0236724,2338.9,2338.8,25.92746898]
[1725986279161,0.0236724,2338.9,2338.8,19.30809707]
[1725986279476,0.0236724,2338.9,2338.8,21.43704]
[1725986279788,0.0236724,2338.9,2338.8,51.87402597]
[1725986279934,0.0236724,2338.9,2338.8,45.78479194]
[1725986280131,0.0236724,2338.9,2338.8,10.78479194]
[1725986280435,0.0236724,2338.9,2338.8,8.00624978]
[1725986280636,0.0236724,2338.9,2338.8,6.59275568]
[1725986280834,0.0236724,2338.9,2338.8,7.24097217]
[1725986281131,0.0236724,2338.9,2338.8,1.17945568]
[1725986282549,0.0236724,2338.9,2338.8,4.17945568]
[1725986284583,0.0236724,2338.9,2338.8,7.14106744]
[1725986284940,0.0236724,2338.9,2338.8,4.17945568]
[1725986285166,0.0236724,2338.9,2338.8,3.0]
[1725986285676,0.0236724,2338.9,2338.8,5.97841176]
[1725986286567,0.0236724,2338.9,2338.8,5.4765]
[1725986287096,0.0236724,2338.9,2338.8,6.12448723]
[1725986287508,0.0236724,2338.9,2338.8,5.4765]
[1725986287799,0.0236724,2338.9,2338.8,6.66227568]
[1725986287999,0.0236724,2338.9,2338.8,4.18577568]
[1725986288488,0.0236724,2338.9,2338.8,7.10968744]
[1725986289263,0.0236724,2338.9,2338.8,9.41271577]
[1725986289468,0.0236724,2338.9,2338.8,8.5226891]
[1725986289662,0.0236724,2338.9,2338.8,9.41271577]
[1725986290097,0.0236724,2338.9,2338.8,10.40259016]
[1725986290305,0.0236724,2338.9,2338.8,14.07142505]
[1725986290503,0.0236724,2339.4,2339.3,4.2901]
[1725986290711,0.0236724,2339.4,2339.3,11.40502684]
[1725986291515,0.0236724,2339.4,2339.3,9.11492684]
[1725986291974,0.0236724,2339.4,2339.3,5.0]
[1725986292183,0.0236724,2339.4,2339.3,6.11492684]
[1725986292378,0.0236724,2339.4,2339.3,10.02641952]
[1725986293028,0.0236724,2339.4,2339.3,5.0]
[1725986293186,0.0236724,2339.4,2339.3,2.0]
[1725986293386,0.0236724,2339.4,2339.3,5.0]
[1725986293979,2.3174724,2339.4,2339.3,2.0]
[1725986296183,0.0236724,2339.4,2339.3,2.0]
[1725986296383,0.0236724,2339.4,2339.3,2.61149268]
[1725986296802,0.0236724,2339.4,2339.3,5.61149268]
[1725986296999,0.0236724,2339.4,2339.3,5.0]
[1725986297232,0.0236724,2339.4,2339.3,2.0]
[1725986297435,2.3964724,2339.4,2339.3,5.0]
[1725986298728,2.3964724,2339.4,2339.3,2.0]
[1725986298936,0.0236724,2339.4,2339.3,5.0]
[1725986299228,0.0236724,2339.4,2339.3,2.0]
[1725986299535,0.0236724,2339.4,2339.3,5.0]
[1725986299695,0.0236724,2339.4,2339.3,2.91149268]
[1725986299891,0.0236724,2339.4,2339.3,5.91149268]
[1725986301906,2.4628724,2339.4,2339.3,5.0]
[1725986302104,2.4628724,2339.4,2339.3,2.0]
[1725986305454,0.0236724,2339.4,2339.3,2.0]
[1725986307131,2.4826724,2339.4,2339.3,2.0]
[1725986307462,2.4826724,2339.4,2339.0,5.0]
[1725986307697,2.4826724,2339.4,2339.0,2.0]
[1725986307698,0.10687634,2339.3,2339.0,2.0]
[1725986307969,2.2748,2339.2,2339.0,2.0]
[1725986308567,0.10687631,2339.1,2339.0,2.0]
[1725986309133,2.42927631,2339.1,2339.0,2.0]
[1725986309364,2.3224,2339.1,2338.7,7.47]
[1725986309547,2.38299701,2339.0,2338.6,2.0]
[1725986310245,3.28095353,2339.0,2338.3,2.0]
[1725986310458,2.2761,2338.9,2338.3,2.0]
[1725986310673,2.461,2338.7,2338.3,2.0]
[1725986310883,0.10690916,2338.6,2338.3,5.0]
[1725986311290,0.10690916,2338.6,2338.4,3.0]
[1725986311492,2.56790916,2338.7,2338.3,2.0]
[1725986312343,0.1069101,2338.6,2338.3,2.0]
[1725986312545,2.4082,2338.5,2338.0,5.0]
[1725986312792,2.4082,2338.3,2338.0,2.0]
[1725986313287,2.3934,2338.6,2338.3,2.0]
[1725986321765,2.40040907,2338.8,2338.3,4.3257]
[1725986321968,2.40040272,2339.0,2338.6,2.0]
[1725986322868,2.2935,2339.0,2338.6,2.0]
[1725986323057,2.56799199,2339.2,2338.6,2.96149268]
[1725986323951,2.4611,2339.2,2338.6,2.96149268]
[1725986324349,0.10688607,2339.1,2338.6,2.96149268]
[1725986324549,2.56798607,2339.2,2338.6,2.96149268]
[1725986324756,2.56798607,2339.2,2338.7,0.70764195]
[1725986325182,2.56798607,2339.2,2338.7,3.70764195]
[1725986325381,2.56798607,2339.2,2338.7,3.0]
[1725986326257,2.56798607,2339.2,2338.6,2.0]
[1725986327596,2.4163,2339.0,2338.6,2.0]
[1725986327893,2.52320355,2338.9,2338.6,2.0]
[1725986329666,2.4163,2338.9,2338.6,2.0]
[1725986329867,2.4163,2338.9,2338.6,2.73101]
[1725986330170,3.38156455,2339.1,2338.6,2.73101]
[1725986330373,3.38156455,2339.1,2338.7,3.0]
[1725986331603,0.89426455,2339.1,2338.9,2.0]
[1725986331802,0.89426455,2339.1,2339.0,0.42537]
[1725986335905,0.89426455,2339.1,2338.9,5.0]
[1725986336266,0.89426455,2339.1,2339.0,3.0]
[1725986336495,0.89426455,2339.1,2338.9,2.0]
[1725986338674,0.89426455,2339.1,2338.6,3.0]
[1725986338675,0.10688521,2339.0,2338.6,5.0]
[1725986339078,0.10688521,2339.0,2338.6,6.15247268]
[1725986339511,0.10688795,2339.1,2338.6,6.15247268]
[1725986339718,0.10688795,2339.1,2338.6,5.0]
[1725986339898,0.10688795,2339.1,2338.6,2.0]
[1725986340486,0.0236724,2339.4,2339.0,2.0]
[1725986340687,0.0236724,2339.4,2339.0,5.0]
[1725986341382,0.0236724,2339.4,2339.0,2.0]
[1725986341786,0.13053966,2339.4,2339.0,2.0]
[1725986341987,0.13053966,2339.4,2338.8,3.0]
[1725986341988,2.2825,2339.3,2338.8,3.0]
[1725986342210,1.02480421,2339.4,2338.6,2.0]
[1725986342211,2.2825,2339.1,2338.6,2.0]
[1725986342375,0.81785088,2339.0,2338.6,2.0]
[1725986342576,0.1069021,2339.0,2338.6,2.0]
[1725986345427,2.4449,2338.9,2338.6,2.0]
[1725986345612,0.10690194,2338.8,2338.6,2.0]
[1725986349623,0.89426455,2339.1,2338.7,2.412]
[1725986349860,1.00116645,2339.2,2338.8,0.4412]
[1725986349981,10.97329683,2339.3,2338.9,2.0]
[1725986349982,10.52616455,2339.3,2338.9,2.0]
[1725986350535,8.17426455,2339.3,2338.9,2.0]
[1725986350821,8.17426455,2339.3,2338.9,3.15269268]
[1725986351027,0.89426455,2339.3,2339.0,3.0]
[1725986351197,1.00113688,2339.3,2339.0,3.0]
[1725986351404,0.81877165,2339.2,2339.0,3.0]
[1725986351712,0.81877165,2339.2,2338.9,2.0]
[1725986351713,3.49314424,2339.2,2338.9,2.0]
[1725986351925,3.49314424,2339.2,2338.8,3.0]
[1725986351926,3.49314424,2339.2,2338.6,3.0]
[1725986352429,0.71136806,2339.1,2338.6,3.0]
[1725986352594,1.0011569,2339.0,2338.6,3.0]
[1725986352790,2.4965,2338.8,2338.6,3.0]
[1725986353128,2.60340103,2338.8,2338.6,3.0]
[1725986353310,2.60340103,2338.8,2338.5,2.0]
[1725986354601,0.10690103,2338.8,2338.5,2.0]
[1725986354797,0.10690103,2338.8,2338.5,2.91149268]
[1725986355126,0.10690103,2338.8,2338.6,3.0]
[1725986355285,1.71306259,2338.8,2338.3,3.0]
[1725986355487,1.00116558,2338.8,2338.3,3.0]
[1725986355709,1.00116558,2338.8,2338.3,4.94578985]
[1725986357017,0.10690103,2338.8,2338.3,4.94578985]
[1725986357328,1.00116558,2338.8,2338.3,4.94578985]
[1725986357528,0.10690103,2338.8,2338.3,4.94578985]
[1725986357934,0.10690103,2338.8,2338.3,9.06071669]
[1725986358238,0.10690103,2338.8,2338.4,1.39336941]
[1725986359292,0.89426455,2338.9,2338.5,2.0]
[1725986359499,2.67403366,2338.9,2338.5,5.0]
[1725986359694,0.10689532,2338.8,2338.5,5.0]
[1725986360537,1.00115987,2338.8,2338.5,5.4332158]
[1725986360720,0.10689532,2338.8,2338.5,5.4332158]
[1725986361127,1.00116616,2338.9,2338.5,5.43317045]